bitfinex/quotes_SOLUSD_20250616
["timestamp","ask_amount","ask_price","bid_price","bid_amount"]
[1750083923952,12.80933353,156.65,156.63,12.4244424]
[1750083924248,12.80933353,156.65,156.63,6.04]
[1750083924436,12.80933353,156.65,156.63,12.42440613]
[1750083924829,12.80933353,156.64,156.63,6.04]
[1750083925033,5.01018556,156.66,156.63,6.04]
[1750083925650,26.0,156.65,156.63,6.04]
[1750083926635,38.80933353,156.65,156.63,6.04]
[1750083926845,39.09365667,156.65,156.64,6.38406537]
[1750083927062,39.09365667,156.65,156.63,6.04]
[1750083927373,13.09365667,156.64,156.63,6.04]
[1750083927648,13.09365667,156.64,156.63,12.42447296]
[1750083928630,26.0,156.65,156.63,25.23380649]
[1750083928837,26.14216157,156.67,156.63,41.19498889]
[1750083929046,38.9514951,156.67,156.63,41.19498889]
[1750083929348,12.80933353,156.65,156.63,12.42447296]
[1750083929685,38.80933353,156.65,156.63,12.42447296]
[1750083930252,26.0,156.65,156.63,12.42447296]
[1750083931548,0.14216157,156.66,156.63,12.42447296]
[1750083931849,38.9514951,156.66,156.63,12.42447296]
[1750083932241,26.0,156.66,156.63,28.38565536]
[1750083932441,26.0,156.66,156.63,41.19498889]
[1750083932833,0.14216157,156.69,156.65,12.80933353]
[1750083933035,4.70823616,156.73,156.67,12.80933353]
[1750083933348,0.28432314,156.7,156.63,28.38565536]
[1750083933658,13.09365667,156.7,156.65,12.80933353]
[1750083933853,12.80933353,156.69,156.64,12.80933353]
[1750083934152,0.28432314,156.68,156.63,28.38565536]
[1750083934349,0.28432314,156.68,156.64,12.80933353]
[1750083935243,0.28432314,156.68,156.65,19.19299136]
[1750083935581,0.28432314,156.7,156.66,12.80933353]
[1750083936250,13.09365667,156.7,156.66,12.80933353]
[1750083936945,0.28432314,156.7,156.66,12.80933353]
[1750083937254,26.0,156.69,156.68,6.38243553]
[1750083938234,0.28432314,156.7,156.68,6.38243553]
[1750083939228,0.28432314,156.7,156.63,37.96192374]
[1750083939229,26.0,156.7,156.69,12.80933353]
[1750083939454,26.0,156.71,156.69,12.80933353]
[1750083939836,12.84393758,156.75,156.7,12.80933353]
[1750083940036,15.97556268,156.75,156.72,12.80933353]
[1750083940550,11.26493758,156.75,156.72,12.80933353]
[1750083941370,11.26493758,156.75,156.73,6.38039941]
[1750083941536,11.26493758,156.75,156.68,18.64964886]
[1750083941537,0.28432314,156.73,156.69,6.3820282]
[1750083941734,12.80933353,156.72,156.69,6.3820282]
[1750083942033,12.80933353,156.72,156.65,1.5586]
[1750083942034,26.28432314,156.71,156.66,19.19258388]
[1750083942228,11.26493758,156.75,156.7,12.80933353]
[1750083942432,26.0,156.73,156.72,12.80933353]
[1750083942755,26.0,156.74,156.72,12.80933353]
[1750083943053,11.26493758,156.75,156.73,12.80933353]
[1750083943353,11.26493758,156.75,156.74,19.18932587]
[1750083943560,4.71046787,156.78,156.74,19.18932587]
[1750083943735,26.0,156.79,156.74,22.3299732]
[1750083943940,26.0,156.77,156.75,12.80933353]
[1750083944150,0.28432314,156.79,156.75,12.80933353]
[1750083944355,26.0,156.77,156.75,12.80933353]
[1750083945454,26.0,156.77,156.76,6.37917836]
[1750083946156,0.28432314,156.79,156.76,6.37917836]
[1750083946328,0.28432314,156.79,156.76,22.32712426]
[1750083946329,5.00360384,156.79,156.76,22.32712426]
[1750083946530,20.66900445,156.82,156.78,12.80933353]
[1750083946779,4.71902345,156.82,156.78,12.80933353]
[1750083947068,12.80933353,156.84,156.79,12.80933353]
[1750083947235,4.71902345,156.83,156.79,12.80933353]
[1750083947435,4.71902345,156.83,156.79,6.37795777]
[1750083947436,26.28432314,156.82,156.79,6.37795777]
[1750083947635,4.71902345,156.81,156.79,6.37795777]
[1750083947860,4.71902345,156.81,156.78,12.80933353]
[1750083947861,0.28432314,156.8,156.73,1.628]
[1750083948071,12.80933353,156.78,156.73,23.61830108]
[1750083948267,17.52835698,156.79,156.74,12.80933353]
[1750083949102,17.81268012,156.78,156.74,6.37999234]
[1750083949264,13.09365667,156.78,156.74,6.37999234]
[1750083950096,12.80933353,156.79,156.74,19.18932587]
[1750083950256,17.53627341,156.79,156.74,19.18932587]
[1750083950451,17.82059655,156.78,156.74,6.37999234]
[1750083950653,13.09365667,156.78,156.74,6.37999234]
[1750083950848,4.72693988,156.77,156.74,6.37999234]
[1750083951068,4.72693988,156.77,156.74,19.18932587]
[1750083951564,4.72693988,156.78,156.74,19.18932587]
[1750083951763,4.72693988,156.77,156.74,19.18932587]
[1750083951968,4.72693988,156.77,156.74,6.37999234]
[1750083952201,4.73312148,156.76,156.74,6.37999234]
[1750083952377,4.73312148,156.77,156.74,6.37999234]
[1750083952586,4.73312148,156.76,156.74,6.37999234]
[1750083952778,4.73312148,156.77,156.74,6.37999234]
[1750083952975,4.73312148,156.77,156.74,22.3299732]
[1750083953179,4.73312148,156.79,156.76,19.18851189]
[1750083953488,4.73312148,156.78,156.76,6.37917836]
[1750083953666,4.73312148,156.77,156.76,6.37917836]
[1750083954580,4.74135237,156.77,156.76,6.37917836]
[1750083954960,4.7414263,156.77,156.76,6.37917836]
[1750083955284,4.7414263,156.77,156.75,6.37958532]
[1750083955489,4.7414263,156.76,156.75,6.37958532]
[1750083956560,4.7414263,156.78,156.75,19.18891885]
[1750083956888,39.09365667,156.8,156.75,14.92745163]
[1750083956889,4.7414263,156.77,156.75,14.92745163]
[1750083957187,4.7414263,156.76,156.75,14.92745163]
[1750083957390,4.7414263,156.78,156.75,14.92745163]
[1750083957684,4.7414263,156.77,156.75,14.92745163]
[1750083957889,4.7414263,156.76,156.75,6.37958532]
[1750083959727,4.7414263,156.78,156.75,14.92745163]
[1750083959866,26.0,156.78,156.76,8.54786631]
[1750083960067,26.0,156.78,156.75,30.87641494]
[1750083960758,4.74053829,156.77,156.75,30.87641494]
[1750083960959,8.54786631,156.77,156.73,6.04]
[1750083961164,0.28432314,156.75,156.73,6.04]
[1750083961387,13.28905543,156.74,156.67,24.50400178]
[1750083961586,13.28905543,156.73,156.68,14.93030184]
[1750083961791,8.54786631,156.73,156.68,14.93030184]
[1750083962087,4.74260135,156.72,156.68,14.93030184]
[1750083962586,4.74261396,156.72,156.69,8.54786631]
[1750083962770,13.29048027,156.73,156.7,6.38162093]
[1750083962972,17.57565171,156.72,156.69,6.38198813]
[1750083963172,12.83303775,156.72,156.69,6.38198813]
[1750083963498,17.57590836,156.71,156.67,6.38284291]
[1750083963685,17.57590836,156.71,156.67,19.21588066]
[1750083964005,4.74287061,156.71,156.67,19.21588066]
[1750083964202,4.74287061,156.71,156.67,22.3399502]
[1750083964383,4.74287061,156.73,156.69,12.83303775]
[1750083964703,4.74287061,156.73,156.71,6.3812137]
[1750083964904,4.74287061,156.73,156.71,19.21425145]
[1750083965080,37.12172495,156.74,156.71,35.16728571]
[1750083965901,37.12172495,156.74,156.71,22.33424796]
[1750083966098,37.12172495,156.74,156.71,35.16728571]
[1750083967504,37.12172495,156.74,156.71,6.3812137]
[1750083967704,37.12172495,156.74,156.68,15.95513502]
[1750083967705,12.83303775,156.72,156.69,6.3820282]
[1750083968005,17.57537455,156.73,156.69,6.3820282]
[1750083968377,12.83303775,156.72,156.69,6.3820282]
[1750083968574,17.57537455,156.73,156.69,6.3820282]
[1750083969012,4.7423368,156.73,156.7,12.83303775]
[1750083969194,4.7423368,156.73,156.69,35.17013647]
[1750083969591,17.57537455,156.73,156.69,6.3820282]
[1750083969978,12.83303775,156.72,156.69,6.3820282]
[1750083970201,17.57537455,156.73,156.69,6.3820282]
[1750083970391,17.57537455,156.73,156.69,19.21506595]
[1750083971794,4.7423368,156.73,156.69,19.21506595]
[1750083972510,4.7423368,156.72,156.69,19.21506595]
[1750083972723,4.7423368,156.73,156.69,19.21506595]
[1750083972893,4.75013344,156.72,156.69,19.21506595]
[1750083973089,4.75013344,156.73,156.69,19.21506595]
[1750083973394,4.75013344,156.72,156.69,19.21506595]
[1750083973596,4.75013344,156.73,156.69,19.21506595]
[1750083973802,30.75013344,156.72,156.71,12.83303775]
[1750083973996,11.40604809,156.74,156.71,12.83303775]
[1750083974202,4.74999445,156.73,156.71,12.83303775]
[1750083974386,4.74999445,156.73,156.72,12.83303775]
[1750083975011,4.74999445,156.73,156.7,12.83303775]
[1750083975199,23.9547627,156.74,156.69,35.17013647]
[1750083975415,4.75389963,156.73,156.69,35.17013647]
[1750083975581,4.75389963,156.72,156.69,35.17013647]
[1750083975785,4.75408227,156.73,156.69,35.17013647]
[1750083975984,4.75408227,156.72,156.69,35.17013647]
[1750083976293,24.09692427,156.74,156.69,35.17013647]
[1750083976488,4.75414012,156.73,156.72,12.83303775]
[1750083976996,4.75414012,156.73,156.71,12.83303775]
[1750083977209,11.12172495,156.74,156.69,22.33709872]
[1750083977416,11.12172495,156.74,156.69,35.17013647]
[1750083977417,4.75389279,156.73,156.69,35.17013647]
[1750083977625,4.75389279,156.72,156.7,12.83303775]
[1750083977824,23.9547627,156.74,156.71,6.3812137]
[1750083977995,4.75718257,156.73,156.71,6.3812137]
[1750083978198,11.12172495,156.74,156.72,12.83303775]
[1750083978501,11.12172495,156.74,156.73,12.83303775]
[1750083978704,15.87823701,156.74,156.73,12.83303775]
[1750083978916,11.12172495,156.74,156.73,12.83303775]
[1750083979501,4.75714318,156.77,156.73,12.83303775]
[1750083979747,4.75714318,156.76,156.75,12.83303775]
[1750083980228,4.75710813,156.76,156.75,12.83303775]
[1750083980639,4.75844079,156.76,156.75,12.83303775]
[1750083980791,4.75844079,156.76,156.74,12.83303775]
[1750083981144,4.75844079,156.75,156.72,12.83303775]
[1750083981344,4.75844079,156.74,156.72,12.83303775]
[1750083981624,0.28432314,156.68,156.6,6.38569604]
[1750083981841,12.83303775,156.66,156.6,12.83303775]
[1750083981996,4.76129859,156.67,156.59,6.38610383]
[1750083981997,26.0,156.65,156.61,12.83303775]
[1750083982201,0.28432314,156.68,156.64,12.83303775]
[1750083982423,4.76464526,156.67,156.64,12.83303775]
[1750083982624,4.76464526,156.66,156.63,12.83303775]
[1750083982820,26.0,156.69,156.65,8.55776708]
[1750083983117,9.5292284,156.68,156.65,8.55776708]
[1750083983325,9.5292284,156.67,156.65,8.55776708]
[1750083983527,26.0,156.69,156.65,8.55776708]
[1750083983733,9.52816484,156.68,156.61,18.64964886]
[1750083983902,9.52816484,156.67,156.62,22.3470821]
[1750083984102,34.55776708,156.69,156.62,22.3470821]
[1750083984426,18.08633852,156.68,156.63,8.55776708]
[1750083984627,9.52857144,156.67,156.63,8.55776708]
[1750083984792,4.76428464,156.66,156.63,12.84027413]
[1750083984991,27.10432314,156.71,156.65,12.84027413]
[1750083984992,0.28432314,156.71,156.65,12.84027413]
[1750083985212,22.36965449,156.7,156.65,12.84027413]
[1750083985498,0.28432314,156.71,156.66,12.84027413]
[1750083985499,9.52938036,156.69,156.66,12.84027413]
[1750083985715,4.76366538,156.68,156.63,18.64964886]
[1750083985915,4.76391585,156.67,156.64,22.3442288]
[1750083986142,4.76362046,156.69,156.64,22.3442288]
[1750083986340,12.84027413,156.7,156.64,22.3442288]
[1750083986341,4.7636113,156.68,156.64,22.3442288]
[1750083986546,12.84027413,156.7,156.64,22.3442288]
[1750083986756,9.52643834,156.69,156.64,22.3442288]
[1750083986958,4.76321917,156.68,156.64,15.96016343]
[1750083987159,12.84027413,156.7,156.64,15.96016343]
[1750083987455,9.52648758,156.69,156.64,15.96016343]
[1750083987626,4.76324379,156.68,156.64,15.96016343]
[1750083987832,2.66564399,156.71,156.64,15.96016343]
[1750083988029,22.36555107,156.7,156.64,15.96016343]
[1750083988239,9.52527694,156.69,156.64,15.96016343]
[1750083988441,9.52527694,156.68,156.64,15.96016343]
[1750083988661,4.76282257,156.67,156.64,15.96016343]
[1750083988948,9.52508079,156.69,156.64,15.96016343]
[1750083989252,4.76254914,156.68,156.64,15.96016343]
[1750083989442,12.84027413,156.7,156.64,15.96016343]
[1750083989643,9.52349154,156.69,156.64,15.96016343]
[1750083989859,4.76197034,156.68,156.64,15.96016343]
[1750083990163,12.84027413,156.7,156.64,15.96016343]
[1750083990343,9.52290736,156.69,156.64,15.96016343]
[1750083990526,4.76152857,156.68,156.64,15.96016343]
[1750083990728,12.84027413,156.7,156.64,15.96016343]
[1750083990944,9.52309932,156.69,156.64,15.96016343]
[1750083991155,9.52317626,156.68,156.64,15.96016343]
[1750083991357,4.76185724,156.67,156.64,15.96016343]
[1750083991664,12.84027413,156.69,156.64,15.96016343]
[1750083991962,9.52143743,156.68,156.64,28.80043756]
[1750083992274,9.52143743,156.67,156.64,15.96016343]
[1750083992442,12.84027413,156.69,156.64,28.80043756]
[1750083992637,9.52131138,156.68,156.64,15.96016343]
[1750083992853,9.52540397,156.67,156.64,15.96016343]
[1750083993149,12.84027413,156.68,156.64,22.3442288]
[1750083993354,9.52545956,156.67,156.64,22.3442288]
[1750083993562,12.84027413,156.68,156.64,22.3442288]
[1750083993770,12.84027413,156.7,156.64,54.26455566]
[1750083993938,12.84027413,156.66,156.64,22.3442288]
[1750083994144,12.84027413,156.68,156.64,22.3442288]
[1750083994365,9.52581085,156.67,156.64,35.18450293]
[1750083994559,11.21928918,156.69,156.64,35.18450293]
[1750083994746,9.52372374,156.68,156.64,35.18450293]
[1750083994944,9.52372374,156.67,156.64,35.18450293]
[1750083995146,24.05956331,156.69,156.64,35.18450293]
[1750083995344,9.52364348,156.68,156.64,35.18450293]
[1750083995553,4.76182174,156.67,156.64,35.18450293]
[1750083995863,24.05956331,156.69,156.64,35.18450293]
[1750083996048,9.52373989,156.68,156.64,35.18450293]
[1750083996252,9.52373989,156.67,156.64,35.18450293]
[1750083996452,24.05956331,156.69,156.64,35.18450293]
[1750083996650,9.52258196,156.68,156.64,35.18450293]
[1750083996846,4.76129098,156.67,156.65,12.84027413]
[1750083997045,4.76149509,156.68,156.65,12.84027413]
[1750083997256,4.76159257,156.67,156.65,12.84027413]
[1750083997444,4.76149509,156.68,156.65,12.84027413]
[1750083997646,24.05956331,156.69,156.65,12.84027413]
[1750083997843,9.52298802,156.68,156.67,12.84027413]
[1750083998046,4.76111357,156.68,156.65,18.64964886]
[1750083998346,24.05956331,156.69,156.64,35.18450293]
[1750083998546,9.52317377,156.68,156.64,35.18450293]
[1750083998744,24.05956331,156.69,156.64,35.18450293]
[1750083999068,22.36590955,156.68,156.64,22.3442288]
[1750083999255,9.52563542,156.67,156.64,22.3442288]
[1750083999562,9.52563542,156.66,156.64,22.3442288]
[1750083999753,11.21928918,156.69,156.65,12.84027413]
[1750084000067,9.52614746,156.68,156.65,12.84027413]
[1750084000245,9.52614746,156.67,156.65,12.84027413]
[1750084000567,11.21928918,156.69,156.65,12.84027413]
[1750084000866,9.52572522,156.68,156.65,12.84027413]
[1750084001045,9.52572522,156.67,156.66,6.38325035]
[1750084001251,11.21928918,156.69,156.66,6.38325035]
[1750084001452,4.76248398,156.68,156.66,19.22352448]
[1750084001654,11.21928918,156.69,156.67,12.84027413]
[1750084001871,4.76489741,156.68,156.67,12.84027413]
[1750084002066,9.52980289,156.68,156.67,12.84027413]
[1750084002275,4.76489741,156.68,156.67,12.84027413]
[1750084002772,9.53030455,156.68,156.67,12.84027413]
[1750084003572,9.53030455,156.68,156.64,18.64964886]
[1750084003771,11.21928918,156.69,156.67,12.84027413]
[1750084003970,9.53480852,156.68,156.67,12.84027413]
[1750084004841,9.53480852,156.68,156.66,8.55699163]
[1750084005173,11.21928918,156.69,156.66,8.55699163]
[1750084005376,9.53473246,156.68,156.66,8.55699163]
[1750084005553,11.21928918,156.69,156.66,8.55699163]
[1750084005871,9.535595,156.68,156.67,6.38284291]
[1750084007567,4.7677975,156.68,156.67,6.38284291]
[1750084007767,9.53582157,156.68,156.67,6.38284291]
[1750084008071,9.53645568,156.68,156.67,6.38284291]
[1750084009473,9.53645568,156.68,156.64,6.38406537]
[1750084009772,8.55699163,156.65,156.63,6.04]
[1750084009971,18.09344731,156.64,156.63,6.04]
[1750084010171,9.53645568,156.64,156.63,14.59699163]
[1750084010475,8.84131477,156.7,156.63,14.59699163]
[1750084010654,9.53674214,156.68,156.65,8.55699163]
[1750084010854,9.53665785,156.67,156.65,8.55699163]
[1750084011163,9.53665785,156.66,156.65,8.55699163]
[1750084011857,4.76836858,156.66,156.65,14.94064946]
[1750084013453,4.76847574,156.72,156.66,18.64964886]
[1750084013671,9.5373926,156.71,156.67,8.55699163]
[1750084013854,9.5373926,156.7,156.68,6.38243553]
[1750084014057,9.5373926,156.69,156.68,6.38243553]
[1750084014467,9.5373926,156.69,156.68,14.93942716]
[1750084014781,4.7686963,156.69,156.68,6.38243553]
[1750084015082,4.7686963,156.69,156.68,14.93942716]
[1750084015381,2.3843233,156.73,156.68,49.54516486]
[1750084015567,9.53499711,156.72,156.71,8.55699163]
[1750084015763,9.53499711,156.72,156.71,6.3812137]
[1750084015969,9.53499711,156.72,156.71,14.93820533]
[1750084016351,9.53421668,156.72,156.71,14.93820533]
[1750084017483,4.76710834,156.72,156.71,14.93820533]
[1750084018594,10.6917097,156.75,156.72,18.64964886]
[1750084018891,10.6917097,156.75,156.74,8.55699163]
[1750084019094,15.45505771,156.75,156.74,8.55699163]
[1750084019453,10.6917097,156.75,156.74,8.55699163]
[1750084020684,10.6917097,156.75,156.73,6.38039941]
[1750084020869,10.6917097,156.75,156.74,8.55699163]
[1750084021862,10.6917097,156.75,156.74,14.93698397]
[1750084023388,15.44780143,156.75,156.74,6.37999234]
[1750084023972,15.44780143,156.75,156.73,6.38039941]
[1750084024192,10.6917097,156.75,156.73,14.93739104]
[1750084026488,10.6917097,156.75,156.74,8.55699163]
[1750084027893,10.6917097,156.75,156.74,14.93698397]
[1750084028477,39.98910334,156.84,156.74,49.53661369]
[1750084028478,36.36101477,156.81,156.74,49.53661369]
[1750084028798,27.80402314,156.81,156.77,8.55699163]
[1750084029475,27.5197,156.81,156.77,8.55699163]
[1750084029692,0.14216157,156.83,156.78,8.55699163]
[1750084029902,8.6991532,156.83,156.79,6.37795777]
[1750084030112,8.55699163,156.82,156.79,6.37795777]
[1750084030309,8.55699163,156.8,156.74,15.94908583]
[1750084030475,8.55699163,156.77,156.75,6.37958532]
[1750084030671,8.6991532,156.79,156.75,22.32854863]
[1750084030971,8.55699163,156.76,156.75,6.37958532]
[1750084031176,8.55699163,156.77,156.75,6.37958532]
[1750084031376,4.74739166,156.76,156.75,6.37958532]
[1750084031573,13.30438329,156.77,156.75,6.37958532]
[1750084031777,4.74721656,156.76,156.75,6.37958532]
[1750084032004,9.49460822,156.76,156.73,6.38039941]
[1750084032209,8.55699163,156.77,156.73,6.38039941]
[1750084032502,4.74777302,156.76,156.73,6.38039941]
[1750084033077,13.30476465,156.76,156.73,6.38039941]
[1750084033277,8.55699163,156.76,156.73,6.38039941]
[1750084033607,13.30476465,156.76,156.73,6.38039941]
[1750084033779,8.55699163,156.76,156.73,6.38039941]
[1750084034708,4.74703515,156.75,156.73,6.38039941]
[1750084034879,8.55699163,156.76,156.73,6.38039941]
[1750084035309,4.74750184,156.77,156.73,30.88838957]
[1750084035489,13.30441771,156.78,156.73,30.88838957]
[1750084035676,4.74742608,156.78,156.73,30.88838957]
[1750084035883,18.05132068,156.8,156.76,6.37917836]
[1750084036093,4.74690297,156.79,156.76,6.37917836]
[1750084036278,4.74690297,156.79,156.76,22.32712426]
[1750084036712,4.74742608,156.8,156.78,8.55699163]
[1750084036894,9.49273148,156.82,156.79,8.55699163]
[1750084037206,9.49273148,156.81,156.79,8.55699163]
[1750084037393,4.74636574,156.82,156.79,8.55699163]
[1750084037706,4.74636574,156.82,156.76,22.32712426]
[1750084037707,9.49234921,156.83,156.81,8.55699163]
[1750084037890,4.74598347,156.82,156.81,8.55699163]
[1750084038206,9.49234921,156.84,156.81,30.87699672]
[1750084038404,4.74598347,156.83,156.82,8.55699163]
[1750084038707,9.49234921,156.84,156.81,30.87699672]
[1750084038904,4.74598347,156.83,156.81,30.87699672]
[1750084039107,9.49234921,156.84,156.81,30.87699672]
[1750084039307,18.9986539,156.86,156.81,30.87699672]
[1750084039308,4.74598347,156.83,156.81,30.87699672]
[1750084039485,9.49234921,156.84,156.81,30.87699672]
[1750084039814,8.55699163,156.82,156.77,14.93576307]
[1750084039992,8.55699163,156.81,156.77,22.32570006]
[1750084040176,8.55699163,156.82,156.77,30.88269169]
[1750084040381,13.3029751,156.82,156.77,30.88269169]
[1750084040582,4.74598347,156.81,156.77,30.88269169]
[1750084040784,4.74255116,156.81,156.77,30.88269169]
[1750084040986,13.29954279,156.82,156.77,30.88269169]
[1750084041220,13.29954279,156.81,156.77,22.32570006]
[1750084041520,0.28432314,156.84,156.77,6.37877144]
[1750084041521,8.55699163,156.8,156.77,6.37877144]
[1750084041693,8.55699163,156.78,156.77,6.37877144]
[1750084042089,8.55699163,156.78,156.75,15.94893764]
[1750084042727,4.74255116,156.79,156.75,24.50592927]
[1750084042893,8.55699163,156.8,156.75,24.50592927]
[1750084043219,13.29954279,156.8,156.75,24.50592927]
[1750084044918,13.29954279,156.8,156.75,30.88551459]
[1750084045300,27.6585,156.82,156.76,8.55699163]
[1750084045494,13.30241214,156.81,156.76,8.55699163]
[1750084045697,4.74542051,156.8,156.76,27.20664049]
[1750084045895,4.74541889,156.81,156.77,8.55699163]
[1750084046092,34.55699163,156.82,156.77,8.55699163]
[1750084046302,34.55699163,156.82,156.76,18.64964886]
[1750084046502,13.30233449,156.81,156.77,8.55699163]
[1750084046824,13.30233449,156.81,156.76,27.20664049]
[1750084047033,8.55699163,156.81,156.77,22.32570006]
[1750084047189,13.30243292,156.81,156.77,22.32570006]
[1750084047396,13.30262936,156.8,156.77,22.32570006]
[1750084047596,13.30243292,156.8,156.77,22.32570006]
[1750084047833,8.55699163,156.8,156.77,22.32570006]
[1750084048028,13.30335289,156.8,156.77,22.32570006]
[1750084048326,8.55699163,156.8,156.77,22.32570006]
[1750084048497,4.74664403,156.79,156.75,18.64964886]
[1750084048699,4.74664403,156.79,156.75,27.20664049]
[1750084048928,18.05016317,156.8,156.75,27.20664049]
[1750084049228,8.55699163,156.8,156.76,8.55699163]
[1750084049433,13.30351914,156.8,156.76,8.55699163]
[1750084049604,8.55699163,156.8,156.76,8.55699163]
[1750084049803,13.30351914,156.8,156.76,8.55699163]
[1750084050112,13.30351914,156.8,156.75,18.64964886]
[1750084050113,8.55699163,156.8,156.75,18.64964886]
[1750084050312,13.30351914,156.8,156.75,27.20664049]
[1750084050611,8.55699163,156.79,156.76,6.37917836]
[1750084051021,13.30351914,156.79,156.76,6.37917836]
[1750084051224,8.55699163,156.79,156.76,6.37917836]
[1750084051822,13.30351914,156.79,156.76,6.37917836]
[1750084052131,8.55699163,156.79,156.76,6.37917836]
[1750084052638,13.30351914,156.79,156.75,22.32756063]
[1750084052824,13.30661752,156.78,156.75,22.32756063]
[1750084053019,8.55699163,156.78,156.75,6.37958532]
[1750084053731,8.55699163,156.78,156.75,22.32854863]
[1750084053925,8.55699163,156.79,156.75,30.88554026]
[1750084054123,4.75063843,156.79,156.75,22.32854863]
[1750084054450,4.75033645,156.78,156.75,22.32854863]
[1750084054628,8.55699163,156.79,156.75,22.32854863]
[1750084054827,4.75398795,156.78,156.75,22.32854863]
[1750084055036,8.55699163,156.79,156.75,22.32854863]
[1750084055238,4.7540445,156.78,156.75,22.32854863]
[1750084055442,0.28432314,156.81,156.75,30.88554026]
[1750084055750,18.06434799,156.8,156.76,8.55699163]
[1750084055930,9.50758002,156.79,156.77,6.37877144]
[1750084056134,8.55699163,156.8,156.77,6.37877144]
[1750084056338,9.50836872,156.79,156.77,6.37877144]
[1750084056522,9.50836872,156.78,156.77,6.37877144]
[1750084056726,26.0,156.82,156.77,22.32570006]
[1750084056946,9.51858198,156.81,156.79,8.55699163]
[1750084057124,9.51858198,156.8,156.78,8.55699163]
[1750084057324,8.55699163,156.83,156.78,8.55699163]
[1750084057549,9.51857176,156.82,156.78,8.55699163]
[1750084057750,9.51857176,156.81,156.78,8.55699163]
[1750084057954,4.75928588,156.8,156.78,8.55699163]
[1750084058155,8.55699163,156.83,156.79,6.37795777]
[1750084058364,9.51843126,156.82,156.79,6.37795777]
[1750084058560,9.51843126,156.81,156.79,30.87984384]
[1750084058859,9.51843126,156.8,156.79,40.97250107]
[1750084059035,4.75921563,156.8,156.79,49.5294927]
[1750084059534,4.76244959,156.83,156.79,49.5294927]
[1750084059863,18.08203853,156.82,156.79,22.32285221]
[1750084060022,9.5250469,156.81,156.79,22.32285221]
[1750084060226,9.5250469,156.8,156.79,22.32285221]
[1750084062169,4.76252345,156.8,156.79,30.87984384]
[1750084062385,4.76442059,156.8,156.79,30.87984384]
[1750084062554,9.52874265,156.8,156.79,30.87984384]
[1750084064771,9.52874265,156.8,156.79,6.37795777]
[1750084065076,9.5294387,156.8,156.79,6.37795777]
[1750084065657,9.52969816,156.8,156.79,6.37795777]
[1750084066565,9.52969816,156.8,156.78,6.37836458]
[1750084066866,8.55699163,156.82,156.78,6.37836458]
[1750084067067,4.76461361,156.81,156.78,22.32427604]
[1750084067273,4.76461361,156.8,156.78,22.32427604]
[1750084067465,4.76481804,156.79,156.78,22.32427604]
[1750084067666,4.76481804,156.79,156.78,30.88126767]
[1750084067866,4.76481911,156.79,156.78,30.88126767]
[1750084068376,8.55699163,156.82,156.78,22.32427604]
[1750084068587,4.76436218,156.81,156.78,30.88126767]
[1750084068764,4.76436218,156.8,156.78,30.88126767]
[1750084068960,26.0,156.82,156.78,30.88126767]
[1750084069182,4.76423351,156.81,156.78,30.88126767]
[1750084069485,4.76625691,156.85,156.8,8.55699163]
[1750084069656,4.76364162,156.84,156.81,8.55699163]
[1750084069972,4.76364162,156.83,156.79,18.64964886]
[1750084070176,4.76364162,156.82,156.8,8.55699163]
[1750084070360,8.55699163,156.85,156.8,8.55699163]
[1750084070553,4.76204679,156.84,156.81,22.32000509]
[1750084070755,4.76197294,156.83,156.81,22.32000509]
[1750084070951,8.55699163,156.85,156.81,22.32000509]
[1750084071155,4.7624034,156.84,156.81,22.32000509]
[1750084071363,4.7624034,156.83,156.81,22.32000509]
[1750084071563,8.55699163,156.85,156.81,22.32000509]
[1750084071765,4.76240126,156.84,156.81,22.32000509]
[1750084071966,4.76240126,156.83,156.81,22.32000509]
[1750084072162,10.9375815,156.85,156.81,22.32000509]
[1750084072361,4.76117975,156.84,156.81,22.32000509]
[1750084072565,4.76117975,156.83,156.81,22.32000509]
[1750084072773,10.93757984,156.85,156.81,22.32000509]
[1750084072977,4.76117758,156.84,156.81,22.32000509]
[1750084073177,4.76117758,156.83,156.81,22.32000509]
[1750084073360,4.76121542,156.82,156.81,22.32000509]
[1750084073761,8.55699163,156.85,156.81,24.49985241]
[1750084074066,4.76114193,156.84,156.81,15.94286078]
[1750084074268,4.76114193,156.83,156.81,15.94286078]
[1750084074572,4.76114193,156.82,156.81,15.94286078]
[1750084074762,4.76114193,156.82,156.8,6.37755102]
[1750084074961,4.76114193,156.81,156.8,6.37755102]
[1750084075364,8.55699163,156.84,156.8,22.32142857]
[1750084075673,4.76024523,156.83,156.8,22.32142857]
[1750084075880,4.760214,156.82,156.8,22.32142857]
[1750084076090,8.55699163,156.84,156.8,22.32142857]
[1750084076264,7.14662577,156.85,156.8,30.8784202]
[1750084076265,10.93736049,156.85,156.8,30.8784202]
[1750084076460,4.76172313,156.84,156.8,30.8784202]
[1750084076688,15.70202054,156.85,156.8,30.8784202]
[1750084076689,4.76172313,156.83,156.8,30.8784202]
[1750084076870,8.55699163,156.85,156.8,30.8784202]
[1750084077072,4.76145133,156.84,156.81,8.55699163]
[1750084077275,4.76145133,156.83,156.81,8.55699163]
[1750084077495,12.82362158,156.86,156.81,8.55699163]